Workbook

Sheet 2022년 구매실적(월별) - 자체구매 현황
A1: 2022년 구매실적(월별) - 자체구매 현황(단위 : 원) | O1: 2023-01-17 20:20:17 PM
A4: 총구매액 | B4: 총구매액 | C4: 2022년도 (실적) | O4: 합계
C5: 1/4 | F5: 2/4 | I5: 3/4 | L5: 4/4
C6: 1월 | D6: 2월 | E6: 3월 | F6: 4월 | G6: 5월 | H6: 6월 | I6: 7월 | J6: 8월 | K6: 9월 | L6: 10월 | M6: 11월 | N6: 12월
A7: 총구매액 | B7: 계 | C7: =SUM(C8:C10) -> 49,251,070 | D7: 66,021,500 | E7: 125,323,170 | F7: 351,778,920 | G7: 398,134,600 | H7: 1,351,699,210 | I7: 280,641,540 | J7: 408,142,200 | K7: 382,183,430 | L7: 488,501,610 | M7: 476,976,610 | N7: 1,597,049,364 | O7: =SUM(C7:N7) -> 5,975,703,224
B8: 물품 | C8: 11,579,890 | D8: 44,345,000 | E8: 73,348,600 | F8: 242,215,110 | G8: 233,728,520 | H8: 280,262,040 | I8: 167,604,660 | J8: 298,527,420 | K8: 259,482,370 | L8: 284,031,860 | M8: 271,433,260 | N8: 706,317,354 | O8: 2,872,876,084
B9: 공사 | C9: 1,984,000 | D9: 4,144,000 | E9: 338,000 | F9: 25,055,000 | G9: 0 | H9: 895,597,300 | I9: 20,742,000 | J9: 36,884,830 | K9: 37,210,700 | L9: 72,960,090 | M9: 100,367,360 | N9: 504,805,500 | O9: 1,700,088,780
B10: 용역 | C10: 35,687,180 | D10: 17,532,500 | E10: 51,636,570 | F10: 84,508,810 | G10: 164,406,080 | H10: 175,839,870 | I10: 92,294,880 | J10: 72,729,950 | K10: 85,490,360 | L10: 131,509,660 | M10: 105,175,990 | N10: 385,926,510 | O10: 1,402,738,360
A11: 중소기업제품구매액 | B11: 계 | C11: =SUM(C12:C14) -> 29,531,830 | D11: 66,021,500 | E11: 112,034,910 | F11: 329,352,930 | G11: 365,624,890 | H11: 1,279,213,520 | I11: 210,126,570 | J11: 339,727,970 | K11: 293,684,650 | L11: 408,361,030 | M11: 379,901,600 | N11: 1,239,061,340 | O11: 5,052,642,740
B12: 물품 | C12: 10,606,390 | D12: 44,345,000 | E12: 70,647,600 | F12: 236,965,110 | G12: 233,178,520 | H12: 240,284,150 | I12: 122,555,470 | J12: 246,100,590 | K12: 203,950,960 | L12: 239,421,810 | M12: 200,430,880 | N12: 396,588,860 | O12: 2,245,075,340
B13: 공사 | C13: 1,984,000 | D13: 4,144,000 | E13: 338,000 | F13: 25,055,000 | G13: 0 | H13: 895,597,300 | I13: 20,742,000 | J13: 36,884,830 | K13: 37,210,700 | L13: 72,796,590 | M13: 100,367,360 | N13: 504,805,500 | O13: 1,699,925,280
B14: 용역 | C14: 16,941,440 | D14: 17,532,500 | E14: 41,049,310 | F14: 67,332,820 | G14: 132,446,370 | H14: 143,332,070 | I14: 66,829,100 | J14: 56,742,550 | K14: 52,522,990 | L14: 96,142,630 | M14: 79,103,360 | N14: 337,666,980 | O14: 1,107,642,120
A15: 여성기업제품구매액 | B15: 계 | C15: =SUM(C16:C18) -> 77,000 | D15: 4,372,800 | E15: 27,032,420 | F15: 49,811,980 | G15: 21,804,530 | H15: 155,356,740 | I15: 20,362,440 | J15: 41,621,980 | K15: 32,830,510 | L15: 30,207,280 | M15: 54,377,350 | N15: 144,535,120 | O15: 582,390,150
B16: 물품 | C16: 77,000 | D16: 4,372,800 | E16: 13,080,920 | F16: 39,800,500 | G16: 21,804,530 | H16: 30,940,040 | I16: 14,653,920 | J16: 15,685,480 | K16: 19,371,560 | L16: 16,690,380 | M16: 30,991,950 | N16: 25,696,820 | O16: 233,165,900
B17: 공사 | C17: 0 | D17: 0 | E17: 0 | F17: 3,520,000 | G17: 0 | H17: 117,883,000 | I17: 0 | J17: 7,667,500 | K17: 1,936,000 | L17: 0 | M17: 4,244,000 | N17: 90,592,300 | O17: 225,842,800
B18: 용역 | C18: 0 | D18: 0 | E18: 13,951,500 | F18: 6,491,480 | G18: 0 | H18: 6,533,700 | I18: 5,708,520 | J18: 18,269,000 | K18: 11,522,950 | L18: 13,516,900 | M18: 19,141,400 | N18: 28,246,000 | O18: 123,381,450
A19: 장애인기업제품구매액 | B19: 계 | C19: =SUM(C20:C22) -> 792,000 | D19: 0 | E19: 5,471,000 | F19: 3,233,000 | G19: 6,142,000 | H19: 1,925,000 | I19: 3,175,610 | J19: 7,714,900 | K19: 1,176,400 | L19: 8,011,800 | M19: 4,746,600 | N19: 23,893,600 | O19: 66,281,910
B20: 물품 | C20: 792,000 | D20: 0 | E20: 5,471,000 | F20: 3,233,000 | G20: 6,142,000 | H20: 1,925,000 | I20: 3,175,610 | J20: 7,714,900 | K20: 1,176,400 | L20: 8,011,800 | M20: 4,746,600 | N20: 18,013,600 | O20: 60,401,910
B21: 공사 | C21: 0 | D21: 0 | E21: 0 | F21: 0 | G21: 0 | H21: 0 | I21: 0 | J21: 0 | K21: 0 | L21: 0 | M21: 0 | N21: 5,880,000 | O21: 5,880,000
B22: 용역 | C22: 0 | D22: 0 | E22: 0 | F22: 0 | G22: 0 | H22: 0 | I22: 0 | J22: 0 | K22: 0 | L22: 0 | M22: 0 | N22: 0 | O22: 0
B24: 구분 | C24: 2022년도 (실적) | O24: 합계
C25: 1월 | D25: 2월 | E25: 3월 | F25: 4월 | G25: 5월 | H25: 6월 | I25: 7월 | J25: 8월 | K25: 9월 | L25: 10월 | M25: 11월 | N25: 12월
A26: 기술개발제품 | B26: 본부 | C26: 0 | D26: 0 | E26: 0 | F26: 0 | G26: 13,752,000 | H26: 0 | I26: 0 | J26: 0 | K26: 0 | L26: 0 | M26: 0 | N26: 0 | O26: =SUM(C26:N26) -> 13,752,000
B27: 소속기관 | C27: 0 | D27: 0 | E27: 0 | F27: 0 | G27: 0 | H27: 0 | I27: 0 | J27: 0 | K27: 0 | L27: 0 | M27: 0 | N27: 0 | O27: =SUM(C27:N27) -> 0
B28: 계 | C28: =SUM(C26:C27) -> 0 | D28: 0 | E28: 0 | F28: 0 | G28: 13,752,000 | H28: 0 | I28: 0 | J28: 0 | K28: 0 | L28: 0 | M28: 0 | N28: 0 | O28: =SUM(C27:N27) -> 0
B30: 구분 | C30: 2022년도 (실적) | O30: 합계
C31: 1월 | D31: 2월 | E31: 3월 | F31: 4월 | G31: 5월 | H31: 6월 | I31: 7월 | J31: 8월 | K31: 9월 | L31: 10월 | M31: 11월 | N31: 12월
A32: 공사용자재직접구매실적 | B32: 본부 | C32: 0 | D32: 0 | E32: 0 | F32: 0 | G32: 0 | H32: 0 | I32: 0 | J32: 0 | K32: 0 | L32: 0 | M32: 0 | N32: 0 | O32: =SUM(C32:N32) -> 0
B33: 소속기관 | C33: 0 | D33: 0 | E33: 0 | F33: 0 | G33: 0 | H33: 0 | I33: 0 | J33: 0 | K33: 0 | L33: 0 | M33: 0 | N33: 0 | O33: =SUM(C33:N33) -> 0
B34: 계 | C34: =SUM(C32:C33) -> 0 | D34: 0 | E34: 0 | F34: 0 | G34: 0 | H34: 0 | I34: 0 | J34: 0 | K34: 0 | L34: 0 | M34: 0 | N34: 0 | O34: =SUM(C34:N34) -> 0
A36: Copyright(c) 중소기업제품 공공구매 종합정보망(smpp)

Sheet 2022년 구매실적(월별) - 조달구매 현황
A1: 2022년 구매실적(월별) - 조달구매 현황(단위 : 원) | O1: 2023-01-17 20:20:49 PM
A4: 총구매액 | B4: 총구매액 | C4: 2022년도 (실적) | O4: 합계
C5: 1/4 | F5: 2/4 | I5: 3/4 | L5: 4/4
C6: 1월 | D6: 2월 | E6: 3월 | F6: 4월 | G6: 5월 | H6: 6월 | I6: 7월 | J6: 8월 | K6: 9월 | L6: 10월 | M6: 11월 | N6: 12월
A7: 총구매액 | B7: 계 | C7: =SUM(C8:C10) -> 0 | D7: 1,125,440 | E7: 2,742,390 | F7: 38,411,720 | G7: 525,371,570 | H7: 23,490,610 | I7: 20,075,960 | J7: 139,937,520 | K7: 20,600,480 | L7: 1,910,260 | M7: 20,570,480 | N7: 44,599,680 | O7: =SUM(C7:N7) -> 838,836,110
B8: 물품 | C8: 0 | D8: 1,125,440 | E8: 2,562,390 | F8: 38,411,720 | G8: 525,371,570 | H8: 23,327,820 | I8: 20,025,960 | J8: 139,927,520 | K8: 20,570,480 | L8: 1,910,260 | M8: 20,570,480 | N8: 43,243,850 | O8: 837,047,490
B9: 공사 | C9: 0 | D9: 0 | E9: 0 | F9: 0 | G9: 0 | H9: 0 | I9: 0 | J9: 0 | K9: 0 | L9: 0 | M9: 0 | N9: 0 | O9: 0
B10: 용역 | C10: 0 | D10: 0 | E10: 180,000 | F10: 0 | G10: 0 | H10: 162,790 | I10: 50,000 | J10: 10,000 | K10: 30,000 | L10: 0 | M10: 0 | N10: 1,355,830 | O10: 1,788,620
A11: 중소기업제품구매액 | B11: 계 | C11: =SUM(C12:C14) -> 0 | D11: 0 | E11: 0 | F11: 38,411,720 | G11: 522,887,900 | H11: 22,978,000 | I11: 20,075,960 | J11: 139,937,520 | K11: 20,600,480 | L11: 1,910,260 | M11: 20,570,480 | N11: 44,599,680 | O11: 831,972,000
B12: 물품 | C12: 0 | D12: 0 | E12: 0 | F12: 38,411,720 | G12: 522,887,900 | H12: 22,815,210 | I12: 20,025,960 | J12: 139,927,520 | K12: 20,570,480 | L12: 1,910,260 | M12: 20,570,480 | N12: 43,243,850 | O12: 830,363,380
B13: 공사 | C13: 0 | D13: 0 | E13: 0 | F13: 0 | G13: 0 | H13: 0 | I13: 0 | J13: 0 | K13: 0 | L13: 0 | M13: 0 | N13: 0 | O13: 0
B14: 용역 | C14: 0 | D14: 0 | E14: 0 | F14: 0 | G14: 0 | H14: 162,790 | I14: 50,000 | J14: 10,000 | K14: 30,000 | L14: 0 | M14: 0 | N14: 1,355,830 | O14: 1,608,620
A15: 여성기업제품구매액 | B15: 계 | C15: =SUM(C16:C18) -> 0 | D15: 0 | E15: 0 | F15: 0 | G15: 0 | H15: 0 | I15: 0 | J15: 0 | K15: 0 | L15: 0 | M15: 0 | N15: 0 | O15: 0
B16: 물품 | C16: 0 | D16: 0 | E16: 0 | F16: 0 | G16: 0 | H16: 0 | I16: 0 | J16: 0 | K16: 0 | L16: 0 | M16: 0 | N16: 0 | O16: 0
B17: 공사 | C17: 0 | D17: 0 | E17: 0 | F17: 0 | G17: 0 | H17: 0 | I17: 0 | J17: 0 | K17: 0 | L17: 0 | M17: 0 | N17: 0 | O17: 0
B18: 용역 | C18: 0 | D18: 0 | E18: 0 | F18: 0 | G18: 0 | H18: 0 | I18: 0 | J18: 0 | K18: 0 | L18: 0 | M18: 0 | N18: 0 | O18: 0
A19: 장애인기업제품구매액 | B19: 계 | C19: =SUM(C20:C22) -> 0 | D19: 0 | E19: 0 | F19: 0 | G19: 0 | H19: 0 | I19: 0 | J19: 0 | K19: 0 | L19: 0 | M19: 0 | N19: 0 | O19: 0
B20: 물품 | C20: 0 | D20: 0 | E20: 0 | F20: 0 | G20: 0 | H20: 0 | I20: 0 | J20: 0 | K20: 0 | L20: 0 | M20: 0 | N20: 0 | O20: 0
B21: 공사 | C21: 0 | D21: 0 | E21: 0 | F21: 0 | G21: 0 | H21: 0 | I21: 0 | J21: 0 | K21: 0 | L21: 0 | M21: 0 | N21: 0 | O21: 0
B22: 용역 | C22: 0 | D22: 0 | E22: 0 | F22: 0 | G22: 0 | H22: 0 | I22: 0 | J22: 0 | K22: 0 | L22: 0 | M22: 0 | N22: 0 | O22: 0
B24: 구분 | C24: 2022년도 (실적) | O24: 합계
C25: 1월 | D25: 2월 | E25: 3월 | F25: 4월 | G25: 5월 | H25: 6월 | I25: 7월 | J25: 8월 | K25: 9월 | L25: 10월 | M25: 11월 | N25: 12월
A26: 기술개발제품 | B26: 본부 | C26: 0 | D26: 0 | E26: 0 | F26: 0 | G26: 29,444,540 | H26: 0 | I26: 1,925,000 | J26: 0 | K26: 0 | L26: 0 | M26: 0 | N26: 831,600 | O26: =SUM(C26:N26) -> 32,201,140
B27: 소속기관 | C27: 0 | D27: 0 | E27: 0 | F27: 0 | G27: 0 | H27: 0 | I27: 0 | J27: 0 | K27: 0 | L27: 0 | M27: 0 | N27: 0 | O27: =SUM(C27:N27) -> 0
B28: 계 | C28: =SUM(C26:C27) -> 0 | D28: 0 | E28: 0 | F28: 0 | G28: 29,444,540 | H28: 0 | I28: 1,925,000 | J28: 0 | K28: 0 | L28: 0 | M28: 0 | N28: 831,600 | O28: =SUM(C27:N27) -> 0
B30: 구분 | C30: 2022년도 (실적) | O30: 합계
C31: 1월 | D31: 2월 | E31: 3월 | F31: 4월 | G31: 5월 | H31: 6월 | I31: 7월 | J31: 8월 | K31: 9월 | L31: 10월 | M31: 11월 | N31: 12월
A32: 공사용자재직접구매실적 | B32: 본부 | C32: 0 | D32: 0 | E32: 0 | F32: 0 | G32: 0 | H32: 0 | I32: 0 | J32: 0 | K32: 0 | L32: 0 | M32: 0 | N32: 0 | O32: =SUM(C32:N32) -> 0
B33: 소속기관 | C33: 0 | D33: 0 | E33: 0 | F33: 0 | G33: 0 | H33: 0 | I33: 0 | J33: 0 | K33: 0 | L33: 0 | M33: 0 | N33: 0 | O33: =SUM(C33:N33) -> 0
B34: 계 | C34: =SUM(C32:C33) -> 0 | D34: 0 | E34: 0 | F34: 0 | G34: 0 | H34: 0 | I34: 0 | J34: 0 | K34: 0 | L34: 0 | M34: 0 | N34: 0 | O34: =SUM(C34:N34) -> 0
A36: Copyright(c) 중소기업제품 공공구매 종합정보망(smpp)

Sheet 합계
A1: 2022년 구매실적(월별) - 구매 현황(단위 : 원) | O1: 2023-01-17 20:20:17 PM
A4: 총구매액 | B4: 총구매액 | C4: 2022년도 (실적) | O4: 합계
C5: 1/4 | F5: 2/4 | I5: 3/4 | L5: 4/4
C6: 1월 | D6: 2월 | E6: 3월 | F6: 4월 | G6: 5월 | H6: 6월 | I6: 7월 | J6: 8월 | K6: 9월 | L6: 10월 | M6: 11월 | N6: 12월
A7: 총구매액 | B7: 계 | C7: =SUM('2022년 구매실적(월별) - 조달구매 현황'!C7,'2022년 구매실적(월별) - 자체구매 현황'!C7) -> 49,251,070 | D7: =SUM('2022년 구매실적(월별) - 조달구매 현황'!D7,'2022년 구매실적(월별) - 자체구매 현황'!D7) -> 67,146,940 | E7: =SUM('2022년 구매실적(월별) - 조달구매 현황'!E7,'2022년 구매실적(월별) - 자체구매 현황'!E7) -> 128,065,560 | F7: =SUM('2022년 구매실적(월별) - 조달구매 현황'!F7,'2022년 구매실적(월별) - 자체구매 현황'!F7) -> 390,190,640 | G7: =SUM('2022년 구매실적(월별) - 조달구매 현황'!G7,'2022년 구매실적(월별) - 자체구매 현황'!G7) -> 923,506,170 | H7: =SUM('2022년 구매실적(월별) - 조달구매 현황'!H7,'2022년 구매실적(월별) - 자체구매 현황'!H7) -> 1,375,189,820 | I7: =SUM('2022년 구매실적(월별) - 조달구매 현황'!I7,'2022년 구매실적(월별) - 자체구매 현황'!I7) -> 300,717,500 | J7: =SUM('2022년 구매실적(월별) - 조달구매 현황'!J7,'2022년 구매실적(월별) - 자체구매 현황'!J7) -> 548,079,720 | K7: =SUM('2022년 구매실적(월별) - 조달구매 현황'!K7,'2022년 구매실적(월별) - 자체구매 현황'!K7) -> 402,783,910 | L7: =SUM('2022년 구매실적(월별) - 조달구매 현황'!L7,'2022년 구매실적(월별) - 자체구매 현황'!L7) -> 490,411,870 | M7: =SUM('2022년 구매실적(월별) - 조달구매 현황'!M7,'2022년 구매실적(월별) - 자체구매 현황'!M7) -> 497,547,090 | N7: =SUM('2022년 구매실적(월별) - 조달구매 현황'!N7,'2022년 구매실적(월별) - 자체구매 현황'!N7) -> 1,641,649,044 | O7: =SUM('2022년 구매실적(월별) - 조달구매 현황'!O7,'2022년 구매실적(월별) - 자체구매 현황'!O7) -> 6,814,539,334
B8: 물품 | C8: =SUM('2022년 구매실적(월별) - 조달구매 현황'!C8,'2022년 구매실적(월별) - 자체구매 현황'!C8) -> 11,579,890 | D8: =SUM('2022년 구매실적(월별) - 조달구매 현황'!D8,'2022년 구매실적(월별) - 자체구매 현황'!D8) -> 45,470,440 | E8: =SUM('2022년 구매실적(월별) - 조달구매 현황'!E8,'2022년 구매실적(월별) - 자체구매 현황'!E8) -> 75,910,990 | F8: =SUM('2022년 구매실적(월별) - 조달구매 현황'!F8,'2022년 구매실적(월별) - 자체구매 현황'!F8) -> 280,626,830 | G8: =SUM('2022년 구매실적(월별) - 조달구매 현황'!G8,'2022년 구매실적(월별) - 자체구매 현황'!G8) -> 759,100,090 | H8: =SUM('2022년 구매실적(월별) - 조달구매 현황'!H8,'2022년 구매실적(월별) - 자체구매 현황'!H8) -> 303,589,860 | I8: =SUM('2022년 구매실적(월별) - 조달구매 현황'!I8,'2022년 구매실적(월별) - 자체구매 현황'!I8) -> 187,630,620 | J8: =SUM('2022년 구매실적(월별) - 조달구매 현황'!J8,'2022년 구매실적(월별) - 자체구매 현황'!J8) -> 438,454,940 | K8: =SUM('2022년 구매실적(월별) - 조달구매 현황'!K8,'2022년 구매실적(월별) - 자체구매 현황'!K8) -> 280,052,850 | L8: =SUM('2022년 구매실적(월별) - 조달구매 현황'!L8,'2022년 구매실적(월별) - 자체구매 현황'!L8) -> 285,942,120 | M8: =SUM('2022년 구매실적(월별) - 조달구매 현황'!M8,'2022년 구매실적(월별) - 자체구매 현황'!M8) -> 292,003,740 | N8: =SUM('2022년 구매실적(월별) - 조달구매 현황'!N8,'2022년 구매실적(월별) - 자체구매 현황'!N8) -> 749,561,204 | O8: =SUM('2022년 구매실적(월별) - 조달구매 현황'!O8,'2022년 구매실적(월별) - 자체구매 현황'!O8) -> 3,709,923,574
B9: 공사 | C9: =SUM('2022년 구매실적(월별) - 조달구매 현황'!C9,'2022년 구매실적(월별) - 자체구매 현황'!C9) -> 1,984,000 | D9: =SUM('2022년 구매실적(월별) - 조달구매 현황'!D9,'2022년 구매실적(월별) - 자체구매 현황'!D9) -> 4,144,000 | E9: =SUM('2022년 구매실적(월별) - 조달구매 현황'!E9,'2022년 구매실적(월별) - 자체구매 현황'!E9) -> 338,000 | F9: =SUM('2022년 구매실적(월별) - 조달구매 현황'!F9,'2022년 구매실적(월별) - 자체구매 현황'!F9) -> 25,055,000 | G9: =SUM('2022년 구매실적(월별) - 조달구매 현황'!G9,'2022년 구매실적(월별) - 자체구매 현황'!G9) -> 0 | H9: =SUM('2022년 구매실적(월별) - 조달구매 현황'!H9,'2022년 구매실적(월별) - 자체구매 현황'!H9) -> 895,597,300 | I9: =SUM('2022년 구매실적(월별) - 조달구매 현황'!I9,'2022년 구매실적(월별) - 자체구매 현황'!I9) -> 20,742,000 | J9: =SUM('2022년 구매실적(월별) - 조달구매 현황'!J9,'2022년 구매실적(월별) - 자체구매 현황'!J9) -> 36,884,830 | K9: =SUM('2022년 구매실적(월별) - 조달구매 현황'!K9,'2022년 구매실적(월별) - 자체구매 현황'!K9) -> 37,210,700 | L9: =SUM('2022년 구매실적(월별) - 조달구매 현황'!L9,'2022년 구매실적(월별) - 자체구매 현황'!L9) -> 72,960,090 | M9: =SUM('2022년 구매실적(월별) - 조달구매 현황'!M9,'2022년 구매실적(월별) - 자체구매 현황'!M9) -> 100,367,360 | N9: =SUM('2022년 구매실적(월별) - 조달구매 현황'!N9,'2022년 구매실적(월별) - 자체구매 현황'!N9) -> 504,805,500 | O9: =SUM('2022년 구매실적(월별) - 조달구매 현황'!O9,'2022년 구매실적(월별) - 자체구매 현황'!O9) -> 1,700,088,780
B10: 용역 | C10: =SUM('2022년 구매실적(월별) - 조달구매 현황'!C10,'2022년 구매실적(월별) - 자체구매 현황'!C10) -> 35,687,180 | D10: =SUM('2022년 구매실적(월별) - 조달구매 현황'!D10,'2022년 구매실적(월별) - 자체구매 현황'!D10) -> 17,532,500 | E10: =SUM('2022년 구매실적(월별) - 조달구매 현황'!E10,'2022년 구매실적(월별) - 자체구매 현황'!E10) -> 51,816,570 | F10: =SUM('2022년 구매실적(월별) - 조달구매 현황'!F10,'2022년 구매실적(월별) - 자체구매 현황'!F10) -> 84,508,810 | G10: =SUM('2022년 구매실적(월별) - 조달구매 현황'!G10,'2022년 구매실적(월별) - 자체구매 현황'!G10) -> 164,406,080 | H10: =SUM('2022년 구매실적(월별) - 조달구매 현황'!H10,'2022년 구매실적(월별) - 자체구매 현황'!H10) -> 176,002,660 | I10: =SUM('2022년 구매실적(월별) - 조달구매 현황'!I10,'2022년 구매실적(월별) - 자체구매 현황'!I10) -> 92,344,880 | J10: =SUM('2022년 구매실적(월별) - 조달구매 현황'!J10,'2022년 구매실적(월별) - 자체구매 현황'!J10) -> 72,739,950 | K10: =SUM('2022년 구매실적(월별) - 조달구매 현황'!K10,'2022년 구매실적(월별) - 자체구매 현황'!K10) -> 85,520,360 | L10: =SUM('2022년 구매실적(월별) - 조달구매 현황'!L10,'2022년 구매실적(월별) - 자체구매 현황'!L10) -> 131,509,660 | M10: =SUM('2022년 구매실적(월별) - 조달구매 현황'!M10,'2022년 구매실적(월별) - 자체구매 현황'!M10) -> 105,175,990 | N10: =SUM('2022년 구매실적(월별) - 조달구매 현황'!N10,'2022년 구매실적(월별) - 자체구매 현황'!N10) -> 387,282,340 | O10: =SUM('2022년 구매실적(월별) - 조달구매 현황'!O10,'2022년 구매실적(월별) - 자체구매 현황'!O10) -> 1,404,526,980
A11: 중소기업제품구매액 | B11: 계 | C11: =SUM('2022년 구매실적(월별) - 조달구매 현황'!C11,'2022년 구매실적(월별) - 자체구매 현황'!C11) -> 29,531,830 | D11: =SUM('2022년 구매실적(월별) - 조달구매 현황'!D11,'2022년 구매실적(월별) - 자체구매 현황'!D11) -> 66,021,500 | E11: =SUM('2022년 구매실적(월별) - 조달구매 현황'!E11,'2022년 구매실적(월별) - 자체구매 현황'!E11) -> 112,034,910 | F11: =SUM('2022년 구매실적(월별) - 조달구매 현황'!F11,'2022년 구매실적(월별) - 자체구매 현황'!F11) -> 367,764,650 | G11: =SUM('2022년 구매실적(월별) - 조달구매 현황'!G11,'2022년 구매실적(월별) - 자체구매 현황'!G11) -> 888,512,790 | H11: =SUM('2022년 구매실적(월별) - 조달구매 현황'!H11,'2022년 구매실적(월별) - 자체구매 현황'!H11) -> 1,302,191,520 | I11: =SUM('2022년 구매실적(월별) - 조달구매 현황'!I11,'2022년 구매실적(월별) - 자체구매 현황'!I11) -> 230,202,530 | J11: =SUM('2022년 구매실적(월별) - 조달구매 현황'!J11,'2022년 구매실적(월별) - 자체구매 현황'!J11) -> 479,665,490 | K11: =SUM('2022년 구매실적(월별) - 조달구매 현황'!K11,'2022년 구매실적(월별) - 자체구매 현황'!K11) -> 314,285,130 | L11: =SUM('2022년 구매실적(월별) - 조달구매 현황'!L11,'2022년 구매실적(월별) - 자체구매 현황'!L11) -> 410,271,290 | M11: =SUM('2022년 구매실적(월별) - 조달구매 현황'!M11,'2022년 구매실적(월별) - 자체구매 현황'!M11) -> 400,472,080 | N11: =SUM('2022년 구매실적(월별) - 조달구매 현황'!N11,'2022년 구매실적(월별) - 자체구매 현황'!N11) -> 1,283,661,020 | O11: =SUM('2022년 구매실적(월별) - 조달구매 현황'!O11,'2022년 구매실적(월별) - 자체구매 현황'!O11) -> 5,884,614,740
B12: 물품 | C12: =SUM('2022년 구매실적(월별) - 조달구매 현황'!C12,'2022년 구매실적(월별) - 자체구매 현황'!C12) -> 10,606,390 | D12: =SUM('2022년 구매실적(월별) - 조달구매 현황'!D12,'2022년 구매실적(월별) - 자체구매 현황'!D12) -> 44,345,000 | E12: =SUM('2022년 구매실적(월별) - 조달구매 현황'!E12,'2022년 구매실적(월별) - 자체구매 현황'!E12) -> 70,647,600 | F12: =SUM('2022년 구매실적(월별) - 조달구매 현황'!F12,'2022년 구매실적(월별) - 자체구매 현황'!F12) -> 275,376,830 | G12: =SUM('2022년 구매실적(월별) - 조달구매 현황'!G12,'2022년 구매실적(월별) - 자체구매 현황'!G12) -> 756,066,420 | H12: =SUM('2022년 구매실적(월별) - 조달구매 현황'!H12,'2022년 구매실적(월별) - 자체구매 현황'!H12) -> 263,099,360 | I12: =SUM('2022년 구매실적(월별) - 조달구매 현황'!I12,'2022년 구매실적(월별) - 자체구매 현황'!I12) -> 142,581,430 | J12: =SUM('2022년 구매실적(월별) - 조달구매 현황'!J12,'2022년 구매실적(월별) - 자체구매 현황'!J12) -> 386,028,110 | K12: =SUM('2022년 구매실적(월별) - 조달구매 현황'!K12,'2022년 구매실적(월별) - 자체구매 현황'!K12) -> 224,521,440 | L12: =SUM('2022년 구매실적(월별) - 조달구매 현황'!L12,'2022년 구매실적(월별) - 자체구매 현황'!L12) -> 241,332,070 | M12: =SUM('2022년 구매실적(월별) - 조달구매 현황'!M12,'2022년 구매실적(월별) - 자체구매 현황'!M12) -> 221,001,360 | N12: =SUM('2022년 구매실적(월별) - 조달구매 현황'!N12,'2022년 구매실적(월별) - 자체구매 현황'!N12) -> 439,832,710 | O12: =SUM('2022년 구매실적(월별) - 조달구매 현황'!O12,'2022년 구매실적(월별) - 자체구매 현황'!O12) -> 3,075,438,720
B13: 공사 | C13: =SUM('2022년 구매실적(월별) - 조달구매 현황'!C13,'2022년 구매실적(월별) - 자체구매 현황'!C13) -> 1,984,000 | D13: =SUM('2022년 구매실적(월별) - 조달구매 현황'!D13,'2022년 구매실적(월별) - 자체구매 현황'!D13) -> 4,144,000 | E13: =SUM('2022년 구매실적(월별) - 조달구매 현황'!E13,'2022년 구매실적(월별) - 자체구매 현황'!E13) -> 338,000 | F13: =SUM('2022년 구매실적(월별) - 조달구매 현황'!F13,'2022년 구매실적(월별) - 자체구매 현황'!F13) -> 25,055,000 | G13: =SUM('2022년 구매실적(월별) - 조달구매 현황'!G13,'2022년 구매실적(월별) - 자체구매 현황'!G13) -> 0 | H13: =SUM('2022년 구매실적(월별) - 조달구매 현황'!H13,'2022년 구매실적(월별) - 자체구매 현황'!H13) -> 895,597,300 | I13: =SUM('2022년 구매실적(월별) - 조달구매 현황'!I13,'2022년 구매실적(월별) - 자체구매 현황'!I13) -> 20,742,000 | J13: =SUM('2022년 구매실적(월별) - 조달구매 현황'!J13,'2022년 구매실적(월별) - 자체구매 현황'!J13) -> 36,884,830 | K13: =SUM('2022년 구매실적(월별) - 조달구매 현황'!K13,'2022년 구매실적(월별) - 자체구매 현황'!K13) -> 37,210,700 | L13: =SUM('2022년 구매실적(월별) - 조달구매 현황'!L13,'2022년 구매실적(월별) - 자체구매 현황'!L13) -> 72,796,590 | M13: =SUM('2022년 구매실적(월별) - 조달구매 현황'!M13,'2022년 구매실적(월별) - 자체구매 현황'!M13) -> 100,367,360 | N13: =SUM('2022년 구매실적(월별) - 조달구매 현황'!N13,'2022년 구매실적(월별) - 자체구매 현황'!N13) -> 504,805,500 | O13: =SUM('2022년 구매실적(월별) - 조달구매 현황'!O13,'2022년 구매실적(월별) - 자체구매 현황'!O13) -> 1,699,925,280
B14: 용역 | C14: =SUM('2022년 구매실적(월별) - 조달구매 현황'!C14,'2022년 구매실적(월별) - 자체구매 현황'!C14) -> 16,941,440 | D14: =SUM('2022년 구매실적(월별) - 조달구매 현황'!D14,'2022년 구매실적(월별) - 자체구매 현황'!D14) -> 17,532,500 | E14: =SUM('2022년 구매실적(월별) - 조달구매 현황'!E14,'2022년 구매실적(월별) - 자체구매 현황'!E14) -> 41,049,310 | F14: =SUM('2022년 구매실적(월별) - 조달구매 현황'!F14,'2022년 구매실적(월별) - 자체구매 현황'!F14) -> 67,332,820 | G14: =SUM('2022년 구매실적(월별) - 조달구매 현황'!G14,'2022년 구매실적(월별) - 자체구매 현황'!G14) -> 132,446,370 | H14: =SUM('2022년 구매실적(월별) - 조달구매 현황'!H14,'2022년 구매실적(월별) - 자체구매 현황'!H14) -> 143,494,860 | I14: =SUM('2022년 구매실적(월별) - 조달구매 현황'!I14,'2022년 구매실적(월별) - 자체구매 현황'!I14) -> 66,879,100 | J14: =SUM('2022년 구매실적(월별) - 조달구매 현황'!J14,'2022년 구매실적(월별) - 자체구매 현황'!J14) -> 56,752,550 | K14: =SUM('2022년 구매실적(월별) - 조달구매 현황'!K14,'2022년 구매실적(월별) - 자체구매 현황'!K14) -> 52,552,990 | L14: =SUM('2022년 구매실적(월별) - 조달구매 현황'!L14,'2022년 구매실적(월별) - 자체구매 현황'!L14) -> 96,142,630 | M14: =SUM('2022년 구매실적(월별) - 조달구매 현황'!M14,'2022년 구매실적(월별) - 자체구매 현황'!M14) -> 79,103,360 | N14: =SUM('2022년 구매실적(월별) - 조달구매 현황'!N14,'2022년 구매실적(월별) - 자체구매 현황'!N14) -> 339,022,810 | O14: =SUM('2022년 구매실적(월별) - 조달구매 현황'!O14,'2022년 구매실적(월별) - 자체구매 현황'!O14) -> 1,109,250,740
A15: 여성기업제품구매액 | B15: 계 | C15: =SUM('2022년 구매실적(월별) - 조달구매 현황'!C15,'2022년 구매실적(월별) - 자체구매 현황'!C15) -> 77,000 | D15: =SUM('2022년 구매실적(월별) - 조달구매 현황'!D15,'2022년 구매실적(월별) - 자체구매 현황'!D15) -> 4,372,800 | E15: =SUM('2022년 구매실적(월별) - 조달구매 현황'!E15,'2022년 구매실적(월별) - 자체구매 현황'!E15) -> 27,032,420 | F15: =SUM('2022년 구매실적(월별) - 조달구매 현황'!F15,'2022년 구매실적(월별) - 자체구매 현황'!F15) -> 49,811,980 | G15: =SUM('2022년 구매실적(월별) - 조달구매 현황'!G15,'2022년 구매실적(월별) - 자체구매 현황'!G15) -> 21,804,530 | H15: =SUM('2022년 구매실적(월별) - 조달구매 현황'!H15,'2022년 구매실적(월별) - 자체구매 현황'!H15) -> 155,356,740 | I15: =SUM('2022년 구매실적(월별) - 조달구매 현황'!I15,'2022년 구매실적(월별) - 자체구매 현황'!I15) -> 20,362,440 | J15: =SUM('2022년 구매실적(월별) - 조달구매 현황'!J15,'2022년 구매실적(월별) - 자체구매 현황'!J15) -> 41,621,980 | K15: =SUM('2022년 구매실적(월별) - 조달구매 현황'!K15,'2022년 구매실적(월별) - 자체구매 현황'!K15) -> 32,830,510 | L15: =SUM('2022년 구매실적(월별) - 조달구매 현황'!L15,'2022년 구매실적(월별) - 자체구매 현황'!L15) -> 30,207,280 | M15: =SUM('2022년 구매실적(월별) - 조달구매 현황'!M15,'2022년 구매실적(월별) - 자체구매 현황'!M15) -> 54,377,350 | N15: =SUM('2022년 구매실적(월별) - 조달구매 현황'!N15,'2022년 구매실적(월별) - 자체구매 현황'!N15) -> 144,535,120 | O15: =SUM('2022년 구매실적(월별) - 조달구매 현황'!O15,'2022년 구매실적(월별) - 자체구매 현황'!O15) -> 582,390,150
B16: 물품 | C16: =SUM('2022년 구매실적(월별) - 조달구매 현황'!C16,'2022년 구매실적(월별) - 자체구매 현황'!C16) -> 77,000 | D16: =SUM('2022년 구매실적(월별) - 조달구매 현황'!D16,'2022년 구매실적(월별) - 자체구매 현황'!D16) -> 4,372,800 | E16: =SUM('2022년 구매실적(월별) - 조달구매 현황'!E16,'2022년 구매실적(월별) - 자체구매 현황'!E16) -> 13,080,920 | F16: =SUM('2022년 구매실적(월별) - 조달구매 현황'!F16,'2022년 구매실적(월별) - 자체구매 현황'!F16) -> 39,800,500 | G16: =SUM('2022년 구매실적(월별) - 조달구매 현황'!G16,'2022년 구매실적(월별) - 자체구매 현황'!G16) -> 21,804,530 | H16: =SUM('2022년 구매실적(월별) - 조달구매 현황'!H16,'2022년 구매실적(월별) - 자체구매 현황'!H16) -> 30,940,040 | I16: =SUM('2022년 구매실적(월별) - 조달구매 현황'!I16,'2022년 구매실적(월별) - 자체구매 현황'!I16) -> 14,653,920 | J16: =SUM('2022년 구매실적(월별) - 조달구매 현황'!J16,'2022년 구매실적(월별) - 자체구매 현황'!J16) -> 15,685,480 | K16: =SUM('2022년 구매실적(월별) - 조달구매 현황'!K16,'2022년 구매실적(월별) - 자체구매 현황'!K16) -> 19,371,560 | L16: =SUM('2022년 구매실적(월별) - 조달구매 현황'!L16,'2022년 구매실적(월별) - 자체구매 현황'!L16) -> 16,690,380 | M16: =SUM('2022년 구매실적(월별) - 조달구매 현황'!M16,'2022년 구매실적(월별) - 자체구매 현황'!M16) -> 30,991,950 | N16: =SUM('2022년 구매실적(월별) - 조달구매 현황'!N16,'2022년 구매실적(월별) - 자체구매 현황'!N16) -> 25,696,820 | O16: =SUM('2022년 구매실적(월별) - 조달구매 현황'!O16,'2022년 구매실적(월별) - 자체구매 현황'!O16) -> 233,165,900
B17: 공사 | C17: =SUM('2022년 구매실적(월별) - 조달구매 현황'!C17,'2022년 구매실적(월별) - 자체구매 현황'!C17) -> 0 | D17: =SUM('2022년 구매실적(월별) - 조달구매 현황'!D17,'2022년 구매실적(월별) - 자체구매 현황'!D17) -> 0 | E17: =SUM('2022년 구매실적(월별) - 조달구매 현황'!E17,'2022년 구매실적(월별) - 자체구매 현황'!E17) -> 0 | F17: =SUM('2022년 구매실적(월별) - 조달구매 현황'!F17,'2022년 구매실적(월별) - 자체구매 현황'!F17) -> 3,520,000 | G17: =SUM('2022년 구매실적(월별) - 조달구매 현황'!G17,'2022년 구매실적(월별) - 자체구매 현황'!G17) -> 0 | H17: =SUM('2022년 구매실적(월별) - 조달구매 현황'!H17,'2022년 구매실적(월별) - 자체구매 현황'!H17) -> 117,883,000 | I17: =SUM('2022년 구매실적(월별) - 조달구매 현황'!I17,'2022년 구매실적(월별) - 자체구매 현황'!I17) -> 0 | J17: =SUM('2022년 구매실적(월별) - 조달구매 현황'!J17,'2022년 구매실적(월별) - 자체구매 현황'!J17) -> 7,667,500 | K17: =SUM('2022년 구매실적(월별) - 조달구매 현황'!K17,'2022년 구매실적(월별) - 자체구매 현황'!K17) -> 1,936,000 | L17: =SUM('2022년 구매실적(월별) - 조달구매 현황'!L17,'2022년 구매실적(월별) - 자체구매 현황'!L17) -> 0 | M17: =SUM('2022년 구매실적(월별) - 조달구매 현황'!M17,'2022년 구매실적(월별) - 자체구매 현황'!M17) -> 4,244,000 | N17: =SUM('2022년 구매실적(월별) - 조달구매 현황'!N17,'2022년 구매실적(월별) - 자체구매 현황'!N17) -> 90,592,300 | O17: =SUM('2022년 구매실적(월별) - 조달구매 현황'!O17,'2022년 구매실적(월별) - 자체구매 현황'!O17) -> 225,842,800
B18: 용역 | C18: =SUM('2022년 구매실적(월별) - 조달구매 현황'!C18,'2022년 구매실적(월별) - 자체구매 현황'!C18) -> 0 | D18: =SUM('2022년 구매실적(월별) - 조달구매 현황'!D18,'2022년 구매실적(월별) - 자체구매 현황'!D18) -> 0 | E18: =SUM('2022년 구매실적(월별) - 조달구매 현황'!E18,'2022년 구매실적(월별) - 자체구매 현황'!E18) -> 13,951,500 | F18: =SUM('2022년 구매실적(월별) - 조달구매 현황'!F18,'2022년 구매실적(월별) - 자체구매 현황'!F18) -> 6,491,480 | G18: =SUM('2022년 구매실적(월별) - 조달구매 현황'!G18,'2022년 구매실적(월별) - 자체구매 현황'!G18) -> 0 | H18: =SUM('2022년 구매실적(월별) - 조달구매 현황'!H18,'2022년 구매실적(월별) - 자체구매 현황'!H18) -> 6,533,700 | I18: =SUM('2022년 구매실적(월별) - 조달구매 현황'!I18,'2022년 구매실적(월별) - 자체구매 현황'!I18) -> 5,708,520 | J18: =SUM('2022년 구매실적(월별) - 조달구매 현황'!J18,'2022년 구매실적(월별) - 자체구매 현황'!J18) -> 18,269,000 | K18: =SUM('2022년 구매실적(월별) - 조달구매 현황'!K18,'2022년 구매실적(월별) - 자체구매 현황'!K18) -> 11,522,950 | L18: =SUM('2022년 구매실적(월별) - 조달구매 현황'!L18,'2022년 구매실적(월별) - 자체구매 현황'!L18) -> 13,516,900 | M18: =SUM('2022년 구매실적(월별) - 조달구매 현황'!M18,'2022년 구매실적(월별) - 자체구매 현황'!M18) -> 19,141,400 | N18: =SUM('2022년 구매실적(월별) - 조달구매 현황'!N18,'2022년 구매실적(월별) - 자체구매 현황'!N18) -> 28,246,000 | O18: =SUM('2022년 구매실적(월별) - 조달구매 현황'!O18,'2022년 구매실적(월별) - 자체구매 현황'!O18) -> 123,381,450
A19: 장애인기업제품구매액 | B19: 계 | C19: =SUM('2022년 구매실적(월별) - 조달구매 현황'!C19,'2022년 구매실적(월별) - 자체구매 현황'!C19) -> 792,000 | D19: =SUM('2022년 구매실적(월별) - 조달구매 현황'!D19,'2022년 구매실적(월별) - 자체구매 현황'!D19) -> 0 | E19: =SUM('2022년 구매실적(월별) - 조달구매 현황'!E19,'2022년 구매실적(월별) - 자체구매 현황'!E19) -> 5,471,000 | F19: =SUM('2022년 구매실적(월별) - 조달구매 현황'!F19,'2022년 구매실적(월별) - 자체구매 현황'!F19) -> 3,233,000 | G19: =SUM('2022년 구매실적(월별) - 조달구매 현황'!G19,'2022년 구매실적(월별) - 자체구매 현황'!G19) -> 6,142,000 | H19: =SUM('2022년 구매실적(월별) - 조달구매 현황'!H19,'2022년 구매실적(월별) - 자체구매 현황'!H19) -> 1,925,000 | I19: =SUM('2022년 구매실적(월별) - 조달구매 현황'!I19,'2022년 구매실적(월별) - 자체구매 현황'!I19) -> 3,175,610 | J19: =SUM('2022년 구매실적(월별) - 조달구매 현황'!J19,'2022년 구매실적(월별) - 자체구매 현황'!J19) -> 7,714,900 | K19: =SUM('2022년 구매실적(월별) - 조달구매 현황'!K19,'2022년 구매실적(월별) - 자체구매 현황'!K19) -> 1,176,400 | L19: =SUM('2022년 구매실적(월별) - 조달구매 현황'!L19,'2022년 구매실적(월별) - 자체구매 현황'!L19) -> 8,011,800 | M19: =SUM('2022년 구매실적(월별) - 조달구매 현황'!M19,'2022년 구매실적(월별) - 자체구매 현황'!M19) -> 4,746,600 | N19: =SUM('2022년 구매실적(월별) - 조달구매 현황'!N19,'2022년 구매실적(월별) - 자체구매 현황'!N19) -> 23,893,600 | O19: =SUM('2022년 구매실적(월별) - 조달구매 현황'!O19,'2022년 구매실적(월별) - 자체구매 현황'!O19) -> 66,281,910
B20: 물품 | C20: =SUM('2022년 구매실적(월별) - 조달구매 현황'!C20,'2022년 구매실적(월별) - 자체구매 현황'!C20) -> 792,000 | D20: =SUM('2022년 구매실적(월별) - 조달구매 현황'!D20,'2022년 구매실적(월별) - 자체구매 현황'!D20) -> 0 | E20: =SUM('2022년 구매실적(월별) - 조달구매 현황'!E20,'2022년 구매실적(월별) - 자체구매 현황'!E20) -> 5,471,000 | F20: =SUM('2022년 구매실적(월별) - 조달구매 현황'!F20,'2022년 구매실적(월별) - 자체구매 현황'!F20) -> 3,233,000 | G20: =SUM('2022년 구매실적(월별) - 조달구매 현황'!G20,'2022년 구매실적(월별) - 자체구매 현황'!G20) -> 6,142,000 | H20: =SUM('2022년 구매실적(월별) - 조달구매 현황'!H20,'2022년 구매실적(월별) - 자체구매 현황'!H20) -> 1,925,000 | I20: =SUM('2022년 구매실적(월별) - 조달구매 현황'!I20,'2022년 구매실적(월별) - 자체구매 현황'!I20) -> 3,175,610 | J20: =SUM('2022년 구매실적(월별) - 조달구매 현황'!J20,'2022년 구매실적(월별) - 자체구매 현황'!J20) -> 7,714,900 | K20: =SUM('2022년 구매실적(월별) - 조달구매 현황'!K20,'2022년 구매실적(월별) - 자체구매 현황'!K20) -> 1,176,400 | L20: =SUM('2022년 구매실적(월별) - 조달구매 현황'!L20,'2022년 구매실적(월별) - 자체구매 현황'!L20) -> 8,011,800 | M20: =SUM('2022년 구매실적(월별) - 조달구매 현황'!M20,'2022년 구매실적(월별) - 자체구매 현황'!M20) -> 4,746,600 | N20: =SUM('2022년 구매실적(월별) - 조달구매 현황'!N20,'2022년 구매실적(월별) - 자체구매 현황'!N20) -> 18,013,600 | O20: =SUM('2022년 구매실적(월별) - 조달구매 현황'!O20,'2022년 구매실적(월별) - 자체구매 현황'!O20) -> 60,401,910
B21: 공사 | C21: =SUM('2022년 구매실적(월별) - 조달구매 현황'!C21,'2022년 구매실적(월별) - 자체구매 현황'!C21) -> 0 | D21: =SUM('2022년 구매실적(월별) - 조달구매 현황'!D21,'2022년 구매실적(월별) - 자체구매 현황'!D21) -> 0 | E21: =SUM('2022년 구매실적(월별) - 조달구매 현황'!E21,'2022년 구매실적(월별) - 자체구매 현황'!E21) -> 0 | F21: =SUM('2022년 구매실적(월별) - 조달구매 현황'!F21,'2022년 구매실적(월별) - 자체구매 현황'!F21) -> 0 | G21: =SUM('2022년 구매실적(월별) - 조달구매 현황'!G21,'2022년 구매실적(월별) - 자체구매 현황'!G21) -> 0 | H21: =SUM('2022년 구매실적(월별) - 조달구매 현황'!H21,'2022년 구매실적(월별) - 자체구매 현황'!H21) -> 0 | I21: =SUM('2022년 구매실적(월별) - 조달구매 현황'!I21,'2022년 구매실적(월별) - 자체구매 현황'!I21) -> 0 | J21: =SUM('2022년 구매실적(월별) - 조달구매 현황'!J21,'2022년 구매실적(월별) - 자체구매 현황'!J21) -> 0 | K21: =SUM('2022년 구매실적(월별) - 조달구매 현황'!K21,'2022년 구매실적(월별) - 자체구매 현황'!K21) -> 0 | L21: =SUM('2022년 구매실적(월별) - 조달구매 현황'!L21,'2022년 구매실적(월별) - 자체구매 현황'!L21) -> 0 | M21: =SUM('2022년 구매실적(월별) - 조달구매 현황'!M21,'2022년 구매실적(월별) - 자체구매 현황'!M21) -> 0 | N21: =SUM('2022년 구매실적(월별) - 조달구매 현황'!N21,'2022년 구매실적(월별) - 자체구매 현황'!N21) -> 5,880,000 | O21: =SUM('2022년 구매실적(월별) - 조달구매 현황'!O21,'2022년 구매실적(월별) - 자체구매 현황'!O21) -> 5,880,000
B22: 용역 | C22: =SUM('2022년 구매실적(월별) - 조달구매 현황'!C22,'2022년 구매실적(월별) - 자체구매 현황'!C22) -> 0 | D22: =SUM('2022년 구매실적(월별) - 조달구매 현황'!D22,'2022년 구매실적(월별) - 자체구매 현황'!D22) -> 0 | E22: =SUM('2022년 구매실적(월별) - 조달구매 현황'!E22,'2022년 구매실적(월별) - 자체구매 현황'!E22) -> 0 | F22: =SUM('2022년 구매실적(월별) - 조달구매 현황'!F22,'2022년 구매실적(월별) - 자체구매 현황'!F22) -> 0 | G22: =SUM('2022년 구매실적(월별) - 조달구매 현황'!G22,'2022년 구매실적(월별) - 자체구매 현황'!G22) -> 0 | H22: =SUM('2022년 구매실적(월별) - 조달구매 현황'!H22,'2022년 구매실적(월별) - 자체구매 현황'!H22) -> 0 | I22: =SUM('2022년 구매실적(월별) - 조달구매 현황'!I22,'2022년 구매실적(월별) - 자체구매 현황'!I22) -> 0 | J22: =SUM('2022년 구매실적(월별) - 조달구매 현황'!J22,'2022년 구매실적(월별) - 자체구매 현황'!J22) -> 0 | K22: =SUM('2022년 구매실적(월별) - 조달구매 현황'!K22,'2022년 구매실적(월별) - 자체구매 현황'!K22) -> 0 | L22: =SUM('2022년 구매실적(월별) - 조달구매 현황'!L22,'2022년 구매실적(월별) - 자체구매 현황'!L22) -> 0 | M22: =SUM('2022년 구매실적(월별) - 조달구매 현황'!M22,'2022년 구매실적(월별) - 자체구매 현황'!M22) -> 0 | N22: =SUM('2022년 구매실적(월별) - 조달구매 현황'!N22,'2022년 구매실적(월별) - 자체구매 현황'!N22) -> 0 | O22: =SUM('2022년 구매실적(월별) - 조달구매 현황'!O22,'2022년 구매실적(월별) - 자체구매 현황'!O22) -> 0
B24: 구분 | C24: 2022년도 (실적) | O24: 합계
C25: 1월 | D25: 2월 | E25: 3월 | F25: 4월 | G25: 5월 | H25: 6월 | I25: 7월 | J25: 8월 | K25: 9월 | L25: 10월 | M25: 11월 | N25: 12월
A26: 기술개발제품 | B26: 본부 | C26: =SUM('2022년 구매실적(월별) - 조달구매 현황'!C26,'2022년 구매실적(월별) - 자체구매 현황'!C26) -> 0 | D26: =SUM('2022년 구매실적(월별) - 조달구매 현황'!D26,'2022년 구매실적(월별) - 자체구매 현황'!D26) -> 0 | E26: =SUM('2022년 구매실적(월별) - 조달구매 현황'!E26,'2022년 구매실적(월별) - 자체구매 현황'!E26) -> 0 | F26: =SUM('2022년 구매실적(월별) - 조달구매 현황'!F26,'2022년 구매실적(월별) - 자체구매 현황'!F26) -> 0 | G26: =SUM('2022년 구매실적(월별) - 조달구매 현황'!G26,'2022년 구매실적(월별) - 자체구매 현황'!G26) -> 43,196,540 | H26: =SUM('2022년 구매실적(월별) - 조달구매 현황'!H26,'2022년 구매실적(월별) - 자체구매 현황'!H26) -> 0 | I26: =SUM('2022년 구매실적(월별) - 조달구매 현황'!I26,'2022년 구매실적(월별) - 자체구매 현황'!I26) -> 1,925,000 | J26: =SUM('2022년 구매실적(월별) - 조달구매 현황'!J26,'2022년 구매실적(월별) - 자체구매 현황'!J26) -> 0 | K26: =SUM('2022년 구매실적(월별) - 조달구매 현황'!K26,'2022년 구매실적(월별) - 자체구매 현황'!K26) -> 0 | L26: =SUM('2022년 구매실적(월별) - 조달구매 현황'!L26,'2022년 구매실적(월별) - 자체구매 현황'!L26) -> 0 | M26: =SUM('2022년 구매실적(월별) - 조달구매 현황'!M26,'2022년 구매실적(월별) - 자체구매 현황'!M26) -> 0 | N26: =SUM('2022년 구매실적(월별) - 조달구매 현황'!N26,'2022년 구매실적(월별) - 자체구매 현황'!N26) -> 831,600 | O26: =SUM('2022년 구매실적(월별) - 조달구매 현황'!O26,'2022년 구매실적(월별) - 자체구매 현황'!O26) -> 45,953,140
B27: 소속기관 | C27: =SUM('2022년 구매실적(월별) - 조달구매 현황'!C27,'2022년 구매실적(월별) - 자체구매 현황'!C27) -> 0 | D27: =SUM('2022년 구매실적(월별) - 조달구매 현황'!D27,'2022년 구매실적(월별) - 자체구매 현황'!D27) -> 0 | E27: =SUM('2022년 구매실적(월별) - 조달구매 현황'!E27,'2022년 구매실적(월별) - 자체구매 현황'!E27) -> 0 | F27: =SUM('2022년 구매실적(월별) - 조달구매 현황'!F27,'2022년 구매실적(월별) - 자체구매 현황'!F27) -> 0 | G27: =SUM('2022년 구매실적(월별) - 조달구매 현황'!G27,'2022년 구매실적(월별) - 자체구매 현황'!G27) -> 0 | H27: =SUM('2022년 구매실적(월별) - 조달구매 현황'!H27,'2022년 구매실적(월별) - 자체구매 현황'!H27) -> 0 | I27: =SUM('2022년 구매실적(월별) - 조달구매 현황'!I27,'2022년 구매실적(월별) - 자체구매 현황'!I27) -> 0 | J27: =SUM('2022년 구매실적(월별) - 조달구매 현황'!J27,'2022년 구매실적(월별) - 자체구매 현황'!J27) -> 0 | K27: =SUM('2022년 구매실적(월별) - 조달구매 현황'!K27,'2022년 구매실적(월별) - 자체구매 현황'!K27) -> 0 | L27: =SUM('2022년 구매실적(월별) - 조달구매 현황'!L27,'2022년 구매실적(월별) - 자체구매 현황'!L27) -> 0 | M27: =SUM('2022년 구매실적(월별) - 조달구매 현황'!M27,'2022년 구매실적(월별) - 자체구매 현황'!M27) -> 0 | N27: =SUM('2022년 구매실적(월별) - 조달구매 현황'!N27,'2022년 구매실적(월별) - 자체구매 현황'!N27) -> 0 | O27: =SUM('2022년 구매실적(월별) - 조달구매 현황'!O27,'2022년 구매실적(월별) - 자체구매 현황'!O27) -> 0
B28: 계 | C28: =SUM('2022년 구매실적(월별) - 조달구매 현황'!C28,'2022년 구매실적(월별) - 자체구매 현황'!C28) -> 0 | D28: =SUM('2022년 구매실적(월별) - 조달구매 현황'!D28,'2022년 구매실적(월별) - 자체구매 현황'!D28) -> 0 | E28: =SUM('2022년 구매실적(월별) - 조달구매 현황'!E28,'2022년 구매실적(월별) - 자체구매 현황'!E28) -> 0 | F28: =SUM('2022년 구매실적(월별) - 조달구매 현황'!F28,'2022년 구매실적(월별) - 자체구매 현황'!F28) -> 0 | G28: =SUM('2022년 구매실적(월별) - 조달구매 현황'!G28,'2022년 구매실적(월별) - 자체구매 현황'!G28) -> 43,196,540 | H28: =SUM('2022년 구매실적(월별) - 조달구매 현황'!H28,'2022년 구매실적(월별) - 자체구매 현황'!H28) -> 0 | I28: =SUM('2022년 구매실적(월별) - 조달구매 현황'!I28,'2022년 구매실적(월별) - 자체구매 현황'!I28) -> 1,925,000 | J28: =SUM('2022년 구매실적(월별) - 조달구매 현황'!J28,'2022년 구매실적(월별) - 자체구매 현황'!J28) -> 0 | K28: =SUM('2022년 구매실적(월별) - 조달구매 현황'!K28,'2022년 구매실적(월별) - 자체구매 현황'!K28) -> 0 | L28: =SUM('2022년 구매실적(월별) - 조달구매 현황'!L28,'2022년 구매실적(월별) - 자체구매 현황'!L28) -> 0 | M28: =SUM('2022년 구매실적(월별) - 조달구매 현황'!M28,'2022년 구매실적(월별) - 자체구매 현황'!M28) -> 0 | N28: =SUM('2022년 구매실적(월별) - 조달구매 현황'!N28,'2022년 구매실적(월별) - 자체구매 현황'!N28) -> 831,600 | O28: =SUM('2022년 구매실적(월별) - 조달구매 현황'!O28,'2022년 구매실적(월별) - 자체구매 현황'!O28) -> 0
B30: 구분 | C30: 2022년도 (실적) | O30: 합계
C31: 1월 | D31: 2월 | E31: 3월 | F31: 4월 | G31: 5월 | H31: 6월 | I31: 7월 | J31: 8월 | K31: 9월 | L31: 10월 | M31: 11월 | N31: 12월
A32: 공사용자재직접구매실적 | B32: 본부 | C32: =SUM('2022년 구매실적(월별) - 조달구매 현황'!C32,'2022년 구매실적(월별) - 자체구매 현황'!C32) -> 0 | D32: =SUM('2022년 구매실적(월별) - 조달구매 현황'!D32,'2022년 구매실적(월별) - 자체구매 현황'!D32) -> 0 | E32: =SUM('2022년 구매실적(월별) - 조달구매 현황'!E32,'2022년 구매실적(월별) - 자체구매 현황'!E32) -> 0 | F32: =SUM('2022년 구매실적(월별) - 조달구매 현황'!F32,'2022년 구매실적(월별) - 자체구매 현황'!F32) -> 0 | G32: =SUM('2022년 구매실적(월별) - 조달구매 현황'!G32,'2022년 구매실적(월별) - 자체구매 현황'!G32) -> 0 | H32: =SUM('2022년 구매실적(월별) - 조달구매 현황'!H32,'2022년 구매실적(월별) - 자체구매 현황'!H32) -> 0 | I32: =SUM('2022년 구매실적(월별) - 조달구매 현황'!I32,'2022년 구매실적(월별) - 자체구매 현황'!I32) -> 0 | J32: =SUM('2022년 구매실적(월별) - 조달구매 현황'!J32,'2022년 구매실적(월별) - 자체구매 현황'!J32) -> 0 | K32: =SUM('2022년 구매실적(월별) - 조달구매 현황'!K32,'2022년 구매실적(월별) - 자체구매 현황'!K32) -> 0 | L32: =SUM('2022년 구매실적(월별) - 조달구매 현황'!L32,'2022년 구매실적(월별) - 자체구매 현황'!L32) -> 0 | M32: =SUM('2022년 구매실적(월별) - 조달구매 현황'!M32,'2022년 구매실적(월별) - 자체구매 현황'!M32) -> 0 | N32: =SUM('2022년 구매실적(월별) - 조달구매 현황'!N32,'2022년 구매실적(월별) - 자체구매 현황'!N32) -> 0 | O32: =SUM('2022년 구매실적(월별) - 조달구매 현황'!O32,'2022년 구매실적(월별) - 자체구매 현황'!O32) -> 0
B33: 소속기관 | C33: =SUM('2022년 구매실적(월별) - 조달구매 현황'!C33,'2022년 구매실적(월별) - 자체구매 현황'!C33) -> 0 | D33: =SUM('2022년 구매실적(월별) - 조달구매 현황'!D33,'2022년 구매실적(월별) - 자체구매 현황'!D33) -> 0 | E33: =SUM('2022년 구매실적(월별) - 조달구매 현황'!E33,'2022년 구매실적(월별) - 자체구매 현황'!E33) -> 0 | F33: =SUM('2022년 구매실적(월별) - 조달구매 현황'!F33,'2022년 구매실적(월별) - 자체구매 현황'!F33) -> 0 | G33: =SUM('2022년 구매실적(월별) - 조달구매 현황'!G33,'2022년 구매실적(월별) - 자체구매 현황'!G33) -> 0 | H33: =SUM('2022년 구매실적(월별) - 조달구매 현황'!H33,'2022년 구매실적(월별) - 자체구매 현황'!H33) -> 0 | I33: =SUM('2022년 구매실적(월별) - 조달구매 현황'!I33,'2022년 구매실적(월별) - 자체구매 현황'!I33) -> 0 | J33: =SUM('2022년 구매실적(월별) - 조달구매 현황'!J33,'2022년 구매실적(월별) - 자체구매 현황'!J33) -> 0 | K33: =SUM('2022년 구매실적(월별) - 조달구매 현황'!K33,'2022년 구매실적(월별) - 자체구매 현황'!K33) -> 0 | L33: =SUM('2022년 구매실적(월별) - 조달구매 현황'!L33,'2022년 구매실적(월별) - 자체구매 현황'!L33) -> 0 | M33: =SUM('2022년 구매실적(월별) - 조달구매 현황'!M33,'2022년 구매실적(월별) - 자체구매 현황'!M33) -> 0 | N33: =SUM('2022년 구매실적(월별) - 조달구매 현황'!N33,'2022년 구매실적(월별) - 자체구매 현황'!N33) -> 0 | O33: =SUM('2022년 구매실적(월별) - 조달구매 현황'!O33,'2022년 구매실적(월별) - 자체구매 현황'!O33) -> 0
B34: 계 | C34: =SUM('2022년 구매실적(월별) - 조달구매 현황'!C34,'2022년 구매실적(월별) - 자체구매 현황'!C34) -> 0 | D34: =SUM('2022년 구매실적(월별) - 조달구매 현황'!D34,'2022년 구매실적(월별) - 자체구매 현황'!D34) -> 0 | E34: =SUM('2022년 구매실적(월별) - 조달구매 현황'!E34,'2022년 구매실적(월별) - 자체구매 현황'!E34) -> 0 | F34: =SUM('2022년 구매실적(월별) - 조달구매 현황'!F34,'2022년 구매실적(월별) - 자체구매 현황'!F34) -> 0 | G34: =SUM('2022년 구매실적(월별) - 조달구매 현황'!G34,'2022년 구매실적(월별) - 자체구매 현황'!G34) -> 0 | H34: =SUM('2022년 구매실적(월별) - 조달구매 현황'!H34,'2022년 구매실적(월별) - 자체구매 현황'!H34) -> 0 | I34: =SUM('2022년 구매실적(월별) - 조달구매 현황'!I34,'2022년 구매실적(월별) - 자체구매 현황'!I34) -> 0 | J34: =SUM('2022년 구매실적(월별) - 조달구매 현황'!J34,'2022년 구매실적(월별) - 자체구매 현황'!J34) -> 0 | K34: =SUM('2022년 구매실적(월별) - 조달구매 현황'!K34,'2022년 구매실적(월별) - 자체구매 현황'!K34) -> 0 | L34: =SUM('2022년 구매실적(월별) - 조달구매 현황'!L34,'2022년 구매실적(월별) - 자체구매 현황'!L34) -> 0 | M34: =SUM('2022년 구매실적(월별) - 조달구매 현황'!M34,'2022년 구매실적(월별) - 자체구매 현황'!M34) -> 0 | N34: =SUM('2022년 구매실적(월별) - 조달구매 현황'!N34,'2022년 구매실적(월별) - 자체구매 현황'!N34) -> 0 | O34: =SUM('2022년 구매실적(월별) - 조달구매 현황'!O34,'2022년 구매실적(월별) - 자체구매 현황'!O34) -> 0
A36: Copyright(c) 중소기업제품 공공구매 종합정보망(smpp)
